bitfinex-derivatives/quotes_ETHF0:USTF0_20260222
["timestamp","ask_amount","ask_price","bid_price","bid_amount"]
[1771782831413,0.57182942,1940.5,1939.5,0.57023908]
[1771782832518,0.57182942,1940.4,1939.5,0.57023908]
[1771782854142,0.59854727,1940.5,1939.6,0.56310155]
[1771782854842,0.00485296,1940.5,1939.8,0.60347977]
[1771782855737,0.56983078,1940.5,1939.8,0.60347977]
[1771782864544,0.56983078,1940.5,1939.9,0.60347977]
[1771782866952,0.00485296,1940.5,1939.9,0.60347977]
[1771782867647,0.56983078,1940.5,1940.1,0.60347977]
[1771782868251,0.00485296,1940.5,1940.1,0.60347977]
[1771782869252,0.56497782,1940.6,1940.1,0.60347977]
[1771782869454,0.56497782,1940.7,1940.1,0.60347977]
[1771782870155,0.56497782,1940.6,1940.1,0.60347977]
[1771782870348,0.57138406,1940.6,1940.1,0.60347977]
[1771782871356,0.00640624,1940.6,1940.1,0.60347977]
[1771782871755,0.57138406,1940.6,1940.1,0.60347977]
[1771782872753,0.00640624,1940.6,1940.1,0.60347977]
[1771782874157,0.57138406,1940.6,1940.1,0.60347977]
[1771782875156,0.00640624,1940.6,1940.1,0.60347977]
[1771782875858,0.56497782,1940.8,1940.1,0.60347977]
[1771782876254,1.75551524,1940.9,1940.1,0.60347977]
[1771782876657,0.56497782,1940.8,1940.1,0.60347977]
[1771782876857,0.56870764,1940.8,1940.1,0.60347977]
[1771782877760,0.00372982,1940.8,1940.1,0.60347977]
[1771782878261,0.56004377,1940.8,1940.1,0.60347977]
[1771782879660,0.00372982,1940.8,1940.1,0.60347977]
[1771782879859,0.55631395,1941.3,1940.6,0.57627959]
[1771782880063,0.55631395,1941.3,1940.8,0.57627959]
[1771782880262,0.55631395,1941.1,1940.3,1.19053742]
[1771782880560,0.55631395,1941.1,1940.4,0.57627959]
[1771782880864,0.56088712,1941.1,1940.4,0.58188697]
[1771782881759,0.55631395,1941.0,1940.4,0.58188697]
[1771782882762,1.75142454,1941.1,1940.4,0.58188697]
[1771782883064,0.55631395,1941.0,1940.4,0.58188697]
[1771782883465,1.19053742,1940.6,1940.4,0.57627959]
[1771782883665,0.55631395,1940.8,1940.1,0.57627959]
[1771782884266,0.55631395,1941.0,1940.3,0.57627959]
[1771782884567,0.55631395,1941.0,1940.3,0.58035868]
[1771782886472,0.55631395,1941.0,1940.5,0.57627959]
[1771782886968,0.56088712,1941.1,1940.5,0.57627959]
[1771782887669,0.56088712,1941.1,1940.7,0.57627959]
[1771782888673,0.00457317,1941.1,1940.7,0.57627959]
[1771782888973,0.56088712,1941.1,1940.7,0.57627959]
[1771782890169,0.55631395,1941.3,1940.7,0.57627959]
[1771782891169,0.55631395,1941.2,1940.5,7.33027959]
[1771782891369,0.55631395,1941.2,1940.6,0.57627959]
[1771782891767,0.55631395,1940.8,1940.3,0.58035868]
[1771782892271,0.55631395,1941.0,1940.3,0.58035868]
[1771782895472,0.55631395,1941.0,1940.4,0.57627959]
[1771782897975,0.55631395,1941.1,1940.4,0.57627959]
[1771782902379,1.19053742,1940.9,1940.4,0.57627959]
[1771782902577,0.55631395,1940.8,1940.4,0.57627959]
[1771782903276,0.55631395,1941.0,1940.4,0.57627959]
[1771782904878,0.00667592,1941.3,1940.5,0.57627959]
[1771782905078,0.00667592,1941.3,1940.4,1.19053742]
[1771782905079,0.56298987,1941.3,1940.9,0.57627959]
[1771782905484,0.55631395,1941.5,1940.9,0.57627959]
[1771782905685,0.55631395,1941.6,1940.9,0.57627959]
[1771782906480,0.56082509,1941.6,1940.9,0.57627959]
[1771782906980,0.55631395,1941.5,1940.9,0.57627959]
[1771782907184,0.55631395,1941.3,1940.9,0.57627959]
[1771782907384,0.55631395,1941.3,1940.7,0.57627959]
[1771782907681,1.19053742,1941.4,1940.8,0.57627959]
[1771782907682,0.55631395,1941.4,1940.8,0.57627959]
[1771782908686,0.58762178,1941.3,1940.7,0.54783497]
[1771782908887,0.58762178,1941.1,1940.6,7.30083497]
[1771782909188,1.7781592,1940.8,1940.4,0.54783497]
[1771782909386,0.58762178,1940.8,1940.4,0.54783497]
[1771782910287,0.58762178,1941.1,1940.4,0.54783497]
[1771782911189,0.58762178,1940.9,1940.4,0.54783497]
[1771782911482,0.58762178,1940.9,1940.5,0.54783497]
[1771782913790,0.58762178,1941.5,1940.5,0.54783497]
[1771782913983,0.58762178,1941.1,1940.5,0.54783497]
[1771782914188,0.58762178,1940.7,1940.3,0.55191406]
[1771782914583,0.58762178,1941.1,1940.4,0.54783497]
[1771782914787,0.58762178,1941.0,1940.4,0.54783497]
[1771782920201,0.57060016,1941.2,1940.4,0.54783497]
[1771782922701,0.57060016,1941.2,1940.6,0.5773171]
[1771782922901,0.57060016,1941.2,1940.8,0.5773171]
[1771782923099,0.57060016,1941.2,1940.7,7.3303171]
[1771782924904,0.57060016,1941.2,1940.8,0.5773171]
[1771782926305,0.57060016,1941.2,1940.7,7.3303171]
[1771782926504,0.57060016,1941.2,1940.7,6.753]
[1771782926706,0.57060016,1941.0,1940.7,6.753]
[1771782930502,0.57060016,1941.0,1940.3,0.58139619]
[1771782930806,0.57060016,1941.0,1940.4,6.753]
[1771782933109,0.57060016,1941.0,1940.3,0.58139619]
[1771782933305,0.57060016,1941.0,1940.4,6.753]
[1771782933500,0.57060016,1941.0,1940.4,7.3303171]
[1771782935508,0.57060016,1941.0,1940.5,0.5773171]
[1771782937910,4.28251833,1941.2,1940.5,0.5773171]
[1771782938107,0.57060016,1941.2,1940.5,0.5773171]
[1771782947619,4.28251833,1941.5,1940.5,0.5773171]
[1771782947824,0.57522849,1941.3,1940.5,0.5773171]
[1771782948817,0.57522849,1941.5,1940.5,0.5773171]
[1771782949021,0.57522849,1941.3,1940.5,0.5773171]
[1771782949928,0.57522849,1941.5,1940.8,0.59146378]
[1771782950227,0.57522849,1941.5,1941.0,0.59146378]
[1771782950425,0.57522849,1941.5,1941.1,7.34446378]
[1771782950725,0.57522849,1941.5,1940.4,1.18970089]
[1771782950726,0.57522849,1941.5,1940.9,6.753]
[1771782951627,0.57522849,1941.5,1940.9,7.34446378]
[1771782951827,0.57522849,1941.5,1940.9,6.753]
[1771782956026,0.57522849,1941.5,1941.0,0.59146378]
[1771782956823,0.57522849,1941.5,1940.9,6.753]
[1771782957030,0.57522849,1941.5,1940.3,0.00407909]
[1771782957031,0.57522849,1941.2,1940.7,6.752]
[1771782957326,0.57522849,1941.0,1940.7,6.752]
[1771782958525,0.57522849,1941.0,1940.7,7.34346378]
[1771782958732,0.57522849,1941.0,1940.7,6.752]
[1771782960428,0.57522849,1941.0,1940.6,6.752]
[1771782960629,0.57522849,1941.0,1940.7,0.59146378]
[1771782961125,0.57522849,1941.3,1940.7,0.59146378]
[1771782961330,0.57522849,1941.1,1940.7,0.59146378]
[1771782962734,9.2239339,1941.6,1940.7,0.59146378]
[1771782962735,0.57522849,1941.3,1940.7,0.59146378]
[1771782962934,6.92248271,1941.2,1940.7,0.59146378]
[1771782963129,0.57522849,1941.2,1940.7,0.59146378]
[1771782964529,0.57522849,1941.3,1940.7,0.59146378]
[1771782964834,0.57522849,1941.5,1940.7,0.59146378]
[1771782965033,6.92437777,1941.4,1940.7,0.59146378]
[1771782965335,6.9252719,1941.3,1940.7,0.59146378]
[1771782965534,0.57522849,1941.3,1940.7,0.59146378]
[1771782979346,0.69369871,1941.5,1940.7,0.59146378]
[1771782979644,6.34496499,1941.4,1940.7,0.59146378]
[1771782979845,0.69369871,1941.5,1940.7,0.59146378]
[1771782980045,6.34497699,1941.4,1940.7,0.59146378]
[1771782980246,0.69369871,1941.5,1940.7,0.59146378]
[1771782980447,6.34609401,1941.4,1940.7,0.59146378]
[1771782980648,0.69369871,1941.5,1940.7,0.59146378]
[1771782980945,6.34608383,1941.4,1940.7,0.59146378]
[1771782981148,0.69369871,1941.5,1940.7,0.59146378]
[1771782981342,6.34635323,1941.4,1940.7,0.59146378]
[1771782981538,0.69369871,1941.5,1940.7,0.59146378]
[1771782981844,6.34635567,1941.4,1940.7,0.59146378]
[1771782982044,0.69369871,1941.5,1940.7,0.59146378]
[1771782982244,6.34660644,1941.4,1940.7,0.59146378]
[1771782982445,0.69369871,1941.5,1940.7,0.59146378]
[1771782982647,6.35833944,1941.4,1940.7,0.59146378]
[1771782982950,0.69369871,1941.5,1940.7,0.59146378]
[1771782983255,6.35833332,1941.4,1940.7,0.59146378]
[1771782983449,0.69369871,1941.5,1940.7,0.59146378]
[1771782983650,6.35838609,1941.4,1940.7,0.59146378]
[1771782983849,0.69369871,1941.5,1940.7,0.59146378]
[1771782984050,6.35845014,1941.4,1940.7,0.59146378]
[1771782984251,0.69369871,1941.5,1940.7,0.59146378]
[1771782984551,7.05215764,1941.4,1940.7,0.59146378]
[1771782984751,0.69369871,1941.4,1940.7,0.59146378]
[1771782984948,0.68282596,1941.4,1940.7,0.59146378]
[1771782985252,0.68282596,1941.4,1940.9,0.71986324]
[1771782985451,0.68282596,1941.4,1941.1,0.71986324]
[1771782986053,0.69820985,1941.6,1941.1,0.71986324]
[1771782989455,0.00451114,1941.6,1941.1,0.71986324]
[1771782989654,1.18930202,1941.9,1941.0,7.94130202]
[1771782989655,0.69369871,1941.7,1941.3,0.71986324]
[1771782989956,0.12846767,1941.7,1941.4,7.47186324]
[1771782990764,0.13504964,1941.7,1941.4,7.47186324]
[1771782992270,0.00658197,1941.7,1941.5,0.71986324]
[1771782992567,0.00658197,1941.7,1941.4,7.47186324]
[1771782992568,0.70028068,1941.7,1941.4,7.47186324]
[1771782994269,0.00658197,1941.7,1941.5,0.71986324]
[1771782995570,0.70028068,1941.7,1941.3,0.71986324]
[1771782995766,0.69369871,1941.4,1941.2,6.751]
[1771782995967,1.88300073,1941.5,1941.2,7.47086324]
[1771782996271,0.69369871,1941.5,1941.2,7.47086324]
[1771782997164,0.69369871,1941.5,1941.2,6.751]
[1771782997368,0.69369871,1941.5,1941.2,7.47086324]
[1771782997569,0.69369871,1941.5,1941.2,0.71986324]
[1771782998772,0.95655168,1941.6,1941.2,0.71986324]
[1771783001572,2.15243567,1941.7,1941.2,0.71986324]
[1771783001774,0.95655168,1941.6,1941.2,0.71986324]
[1771783002475,0.96313365,1941.7,1941.2,0.71986324]
[1771783002769,2.1458537,1941.5,1941.2,0.94163838]
[1771783004480,0.95655168,1941.6,1941.2,0.94163838]
[1771783010384,0.95655168,1941.6,1941.1,0.94163838]
[1771783010585,0.95655168,1941.4,1941.2,6.751]
[1771783010781,0.95655168,1941.4,1941.0,7.69263838]
[1771783011690,0.95655168,1941.4,1941.1,0.94163838]
[1771783011888,0.95655168,1941.5,1941.1,0.94163838]
[1771783020090,0.95655168,1941.4,1941.0,6.751]
[1771783020393,0.95655168,1941.4,1941.0,7.69263838]
[1771783020594,0.95655168,1941.4,1941.1,0.94163838]
[1771783021092,0.95655168,1941.4,1941.0,7.69263838]
[1771783024798,0.95655168,1941.4,1941.0,7.69263838]
[1771783026295,0.95655168,1941.4,1941.1,0.94163838]
[1771783027195,2.1458537,1941.5,1941.1,0.94163838]
[1771783027398,7.32503968,1941.4,1941.1,0.94163838]
[1771783027597,2.1458537,1941.5,1941.1,0.94163838]
[1771783029102,0.95655168,1941.5,1941.1,0.94163838]
[1771783032401,6.37002995,1941.4,1941.1,0.94163838]
[1771783032606,0.95655168,1941.5,1941.1,0.94163838]
[1771783033507,0.94623096,1941.3,1941.0,7.75982054]
[1771783035406,0.98212909,1941.4,1941.1,0.91730499]
[1771783035610,0.98212909,1941.4,1941.0,7.66830499]
[1771783035804,0.98212909,1941.2,1941.0,6.751]
[1771783036208,0.98212909,1941.2,1940.9,0.91730499]
[1771783036511,0.98212909,1941.2,1940.9,7.66930499]
[1771783036708,0.98212909,1941.4,1941.0,0.91730499]
[1771783036909,0.98212909,1941.2,1940.9,7.66930499]
[1771783040615,0.98212909,1941.4,1941.0,0.91730499]
[1771783040806,7.35526003,1941.3,1941.0,0.91730499]
[1771783041009,0.98212909,1941.3,1941.0,0.91730499]
[1771783043014,0.98212909,1941.3,1940.9,7.66930499]
[1771783044210,0.98212909,1941.3,1940.9,6.752]
[1771783044412,0.98212909,1941.3,1940.1,12.35632312]
[1771783044413,0.98212909,1941.1,1940.7,7.66930499]
[1771783044612,0.98212909,1941.1,1940.4,0.91730499]
[1771783044812,0.98212909,1941.1,1940.2,1.18930202]
[1771783044813,0.98212909,1941.1,1940.6,0.91730499]
[1771783045012,0.98212909,1941.1,1940.7,7.66930499]
[1771783047419,0.98212909,1941.1,1940.8,0.91730499]
[1771783048826,0.98212909,1941.1,1940.4,0.91730499]
[1771783049123,0.98212909,1941.1,1940.6,0.91730499]
[1771783056325,0.98212909,1940.9,1940.5,7.66930499]
[1771783056528,0.98212909,1940.9,1940.6,0.91730499]
[1771783058930,0.98212909,1940.9,1940.3,0.90742367]
[1771783059230,0.94922098,1940.7,1940.3,0.00407909]
[1771783059829,0.94922098,1940.7,1940.3,0.90742367]
[1771783067834,0.94922098,1940.7,1940.3,0.00407909]
[1771783068137,0.94922098,1940.7,1940.3,0.91923533]
[1771783075141,0.94922098,1940.7,1940.3,0.00407909]
[1771783075945,0.94922098,1940.7,1940.3,0.91923533]
[1771783077842,0.94922098,1940.7,1940.3,0.00407909]
[1771783079644,0.94922098,1940.7,1940.3,0.91923533]
[1771783081652,0.90065409,1940.9,1940.3,0.91923533]
[1771783081940,6.36000539,1940.8,1940.3,0.91923533]
[1771783082146,0.90065409,1940.8,1940.3,0.91923533]
[1771783087155,0.90065409,1940.6,1940.3,0.91923533]
[1771783088944,0.90065409,1940.6,1940.3,0.00407909]
[1771783089149,0.90065409,1940.6,1940.3,0.91442045]
[1771783097757,0.8696027,1940.8,1940.3,0.91442045]
[1771783098059,6.16147217,1940.7,1940.3,0.91442045]
[1771783098261,0.8696027,1940.8,1940.3,0.91442045]
[1771783098558,7.03108959,1940.7,1940.3,0.91442045]
[1771783098761,0.8696027,1940.7,1940.3,0.91442045]
[1771783115265,0.8696027,1940.8,1940.3,0.91442045]
[1771783115568,6.18518331,1940.7,1940.3,0.91442045]
[1771783115768,0.8696027,1940.7,1940.3,0.91442045]
[1771783133887,5.06508878,1940.9,1940.3,0.91442045]
[1771783134186,6.18081331,1940.8,1940.3,0.91442045]
[1771783134389,6.18081331,1940.7,1940.3,0.91442045]
[1771783134685,0.77911284,1940.8,1940.3,0.91442045]
[1771783134886,6.18047817,1940.7,1940.3,0.91442045]
[1771783135085,0.77911284,1940.8,1940.3,0.91442045]
[1771783135286,6.18033513,1940.7,1940.3,0.91442045]
[1771783135486,0.77911284,1940.8,1940.3,0.91442045]
[1771783135684,6.18033418,1940.7,1940.3,0.91442045]
[1771783135987,0.77911284,1940.8,1940.3,0.91442045]
[1771783136188,6.18031177,1940.7,1940.3,0.91442045]
[1771783136386,0.77911284,1940.8,1940.3,0.91442045]
[1771783136587,6.18015806,1940.7,1940.3,0.91442045]
[1771783136792,0.77911284,1940.8,1940.3,0.91442045]
[1771783136989,6.95927089,1940.7,1940.3,0.91442045]
[1771783137288,0.77911284,1940.7,1940.3,0.91442045]
[1771783140889,5.4762141,1941.0,1940.1,0.80966247]
[1771783140890,0.77911284,1940.5,1940.1,0.80966247]
[1771783141995,0.77911284,1940.3,1940.1,0.00592173]
[1771783142190,0.78315841,1940.3,1940.1,0.00592173]
[1771783150395,0.78315841,1940.3,1939.8,0.75620245]
[1771783150698,0.74344982,1940.1,1939.5,0.75620245]
[1771783150892,0.74344982,1939.7,1938.7,10.79524869]
[1771783151087,0.74344982,1939.1,1938.7,0.75620245]
[1771783151291,0.74344982,1939.3,1938.8,0.75620245]
[1771783151697,0.74344982,1939.3,1938.9,0.75620245]
[1771783151892,0.74344982,1939.5,1938.9,0.75620245]
[1771783157905,0.7253894,1939.4,1938.9,0.75620245]
[1771783158400,1.19023816,1939.5,1938.9,0.75620245]
[1771783158605,0.7253894,1939.8,1939.0,0.7144763]
[1771783158900,0.7253894,1939.8,1939.2,0.7144763]
[1771783159800,0.7253894,1939.6,1939.2,0.7144763]
[1771783160001,0.7253894,1939.6,1939.1,7.4704763]
[1771783160503,0.7253894,1939.6,1939.2,0.7144763]
[1771783162999,0.7253894,1939.6,1939.1,7.4704763]
[1771783163907,0.7253894,1939.6,1939.2,0.7144763]
[1771783168909,0.7253894,1939.4,1939.0,0.7144763]
[1771783170007,0.7253894,1939.4,1938.9,6.756]
[1771783170208,0.7253894,1939.4,1938.9,7.4704763]
[1771783170404,0.7253894,1939.4,1939.0,0.7144763]
[1771783175110,0.7253894,1939.7,1939.0,0.7144763]
[1771783178411,0.70862891,1939.5,1939.0,0.7144763]
[1771783181813,0.70862891,1939.7,1939.0,0.7144763]
[1771783182114,6.31631166,1939.6,1939.0,0.7144763]
[1771783182313,0.70862891,1939.7,1939.0,0.7144763]
[1771783182515,6.31676755,1939.6,1939.0,0.7144763]
[1771783182715,0.70862891,1939.7,1939.0,0.7144763]
[1771783182914,6.3165783,1939.6,1939.0,0.7144763]
[1771783183114,0.70862891,1939.7,1939.0,0.7144763]
[1771783183310,6.31657708,1939.6,1939.0,0.7144763]
[1771783183612,6.31657708,1939.5,1939.0,0.7144763]
[1771783183814,0.70862891,1939.7,1939.0,0.7144763]
[1771783184013,6.3172084,1939.6,1939.0,0.7144763]
[1771783184214,6.3172084,1939.5,1939.0,0.7144763]
[1771783184514,0.70862891,1939.7,1939.0,0.7144763]
[1771783184714,6.31803242,1939.6,1939.0,0.7144763]
[1771783184909,0.70862891,1939.7,1939.0,0.7144763]
[1771783184910,6.31803242,1939.5,1939.0,0.7144763]
[1771783185110,0.70862891,1939.7,1939.0,0.7144763]
[1771783185311,7.0266873,1939.6,1939.0,0.7144763]
[1771783185510,6.31805839,1939.5,1939.0,0.7144763]
[1771783186711,7.0266873,1939.5,1939.0,0.7144763]
[1771783186913,0.70862891,1939.5,1939.0,0.7144763]
[1771783190117,47.22397992,1939.9,1939.1,0.6644467]
[1771783190118,0.70862891,1939.9,1939.1,0.6644467]
[1771783190316,0.70862891,1939.9,1939.3,0.6644467]
[1771783191217,0.70862891,1940.2,1939.5,0.6644467]
[1771783191420,0.70862891,1940.2,1939.7,0.6644467]
[1771783191621,40.80404557,1940.3,1939.7,0.6644467]
[1771783191815,6.30821669,1940.2,1939.7,0.6644467]
[1771783192017,0.71267448,1940.3,1939.7,0.6644467]
[1771783193021,0.00404557,1940.3,1939.7,0.6644467]
[1771783193417,4.29022222,1940.8,1939.7,0.6644467]
[1771783193418,0.70862891,1940.6,1939.7,0.6644467]
[1771783194523,0.71315173,1940.6,1939.7,0.6644467]
[1771783198819,0.71315173,1940.6,1939.8,0.6644467]
[1771783200322,0.70862891,1940.4,1939.7,0.6644467]
[1771783201125,0.70862891,1940.4,1939.6,6.756]
[1771783201730,0.70862891,1940.4,1939.7,0.6644467]
[1771783203933,0.70862891,1940.4,1939.6,7.32658483]
[1771783209334,0.70862891,1940.4,1939.7,0.56415833]
[1771783211835,0.62230943,1940.1,1939.6,6.756]
[1771783212129,0.62230943,1939.8,1939.2,0.55350136]
[1771783221739,0.82685438,1940.1,1939.2,0.55350136]
[1771783222040,0.82685438,1940.4,1939.6,0.79916869]
[1771783222341,0.82685438,1940.4,1939.8,0.79916869]
[1771783234146,0.82685438,1940.4,1939.9,0.79916869]
[1771783253966,5.47468557,1940.6,1939.9,0.79916869]
[1771783253967,0.80958772,1940.5,1939.9,0.79916869]
[1771783254165,0.00452282,1940.6,1940.1,0.77577346]
[1771783254360,0.00452282,1940.6,1940.1,0.78047255]
[1771783254564,0.81411054,1940.6,1940.1,0.78047255]
[1771783256470,0.00452282,1940.6,1940.1,0.78047255]
[1771783256671,0.80958772,1940.8,1940.1,0.78047255]
[1771783257469,0.80958772,1940.8,1940.3,0.77577346]
[1771783257669,0.81425705,1940.8,1940.3,0.77577346]
[1771783270480,0.7012783,1940.9,1940.3,0.77577346]
[1771783271580,0.70758525,1940.9,1940.3,0.77577346]
[1771783273183,0.70758525,1940.9,1940.2,1.19070859]
[1771783273380,0.70758525,1940.9,1940.2,1.86503083]
[1771783273682,0.70758525,1940.9,1940.3,0.67432224]
[1771783279387,0.6677052,1940.8,1940.3,0.67432224]
[1771783286691,0.67401215,1940.9,1940.3,0.67432224]
[1771783286891,6.30245174,1940.8,1940.3,0.67432224]
[1771783287089,0.67401215,1940.9,1940.3,0.67432224]
[1771783287289,6.30243627,1940.8,1940.3,0.67432224]
[1771783287489,0.00630695,1940.9,1940.3,0.67432224]
[1771783288389,0.67401215,1940.9,1940.3,0.67432224]
[1771783313206,0.66358026,1940.9,1940.3,0.67432224]
[1771783321526,6.29167101,1940.8,1940.1,0.00469909]
[1771783321724,0.65727331,1940.7,1940.1,0.00469909]
[1771783322226,0.65727331,1940.7,1940.1,0.40986246]
[1771783325024,0.66358026,1940.9,1940.2,0.39420778]
[1771783333437,0.66358026,1940.9,1940.2,0.40420778]
[1771783352843,0.66358026,1940.9,1940.2,0.01]
[1771783353345,0.600351,1940.6,1940.1,6.75869909]
[1771783355436,0.600351,1940.6,1940.1,4.74885083]
[1771783356446,0.600351,1940.6,1940.1,4.75450889]
[1771783357147,1.19053904,1940.5,1940.1,4.75450889]
[1771783357347,0.01533015,1940.4,1940.1,0.00565806]
[1771783359748,0.01533015,1940.4,1939.8,0.61565862]
[1771783360846,1.19684599,1940.9,1940.0,0.65033427]
[1771783361048,0.00630695,1940.9,1940.4,0.65033427]
[1771783362545,0.00630695,1940.9,1940.1,0.65697612]
[1771783362950,1.19053904,1940.8,1940.1,0.65697612]
[1771783371262,0.00630695,1940.9,1940.1,0.65697612]
[1771783372857,0.00630695,1940.9,1940.3,0.65558276]
[1771783373057,0.00630695,1940.9,1940.5,0.65558276]
[1771783373862,1.19053904,1941.2,1940.5,0.65558276]
[1771783374063,6.29269656,1941.1,1940.5,0.65558276]
[1771783374261,1.19053904,1941.2,1940.5,0.65558276]
[1771783374458,6.29347631,1941.1,1940.5,0.65558276]
[1771783374658,1.19053904,1941.2,1940.5,0.65558276]
[1771783374855,6.29347771,1941.1,1940.5,0.65558276]
[1771783375055,1.19679507,1941.2,1940.5,0.65558276]
[1771783375256,6.29433418,1941.1,1940.5,0.65558276]
[1771783375458,1.19679507,1941.2,1940.5,0.65558276]
[1771783375657,6.29433439,1941.1,1940.5,0.65558276]
[1771783375855,1.19679507,1941.2,1940.5,0.65558276]
[1771783376056,6.29433418,1941.1,1940.5,0.65558276]
[1771783376257,1.19679507,1941.2,1940.5,0.65558276]
[1771783376457,6.29526798,1941.1,1940.5,0.65558276]
[1771783376653,1.19679507,1941.2,1940.5,0.65558276]
[1771783376855,6.29530068,1941.1,1940.5,0.65558276]
[1771783377055,1.19679507,1941.2,1940.5,0.65558276]
[1771783377258,6.29631352,1941.1,1940.5,0.65558276]
[1771783377462,1.19679507,1941.2,1940.5,0.65558276]
[1771783377657,6.29631352,1941.1,1940.5,0.65558276]
[1771783377863,1.19679507,1941.2,1940.5,0.65558276]
[1771783378061,6.29631325,1941.1,1940.5,0.65558276]
[1771783378262,6.29631325,1941.0,1940.5,0.65558276]
[1771783378561,1.19679507,1941.2,1940.5,0.65558276]
[1771783378762,6.29743533,1941.1,1940.5,0.65558276]
[1771783378964,6.29743533,1941.0,1940.5,0.65558276]
[1771783379164,1.19679507,1941.2,1940.5,0.65558276]
[1771783379360,6.29869518,1941.1,1940.5,0.65558276]
[1771783379560,6.29869518,1941.0,1940.5,0.65558276]
[1771783379762,1.19679507,1941.2,1940.5,0.65558276]
[1771783380061,6.29872961,1941.1,1940.5,0.65558276]
[1771783380260,6.29872961,1941.0,1940.5,0.65558276]
[1771783380460,1.19679507,1941.2,1940.5,0.65558276]
[1771783380662,6.29966103,1941.1,1940.5,0.65558276]
[1771783380862,6.29966103,1941.0,1940.5,0.65558276]
[1771783381062,1.19679507,1941.2,1940.5,0.65558276]
[1771783381361,6.30001354,1941.1,1940.5,0.65558276]
[1771783381561,6.30001354,1941.0,1940.5,0.65558276]
[1771783381761,1.19679507,1941.2,1940.5,0.65558276]
[1771783381961,6.29992524,1941.1,1940.5,0.65558276]
[1771783382162,6.29992524,1941.0,1940.5,0.65558276]
[1771783382364,1.19679507,1941.2,1940.5,0.65558276]
[1771783382555,6.30112014,1941.1,1940.5,0.65558276]
[1771783382761,6.30112014,1941.0,1940.5,0.65558276]
[1771783382960,1.19679507,1941.2,1940.5,0.65558276]
[1771783383260,6.30146347,1941.1,1940.5,0.65558276]
[1771783383455,6.30146347,1941.0,1940.5,0.65558276]
[1771783383760,1.19679507,1941.2,1940.5,0.65558276]
[1771783383959,6.30138839,1941.1,1940.5,0.65558276]
[1771783384166,6.30138839,1941.0,1940.5,0.65558276]
[1771783384361,1.19679507,1941.2,1940.5,0.65558276]
[1771783384563,6.30102872,1941.1,1940.5,0.65558276]
[1771783384762,6.30102872,1941.0,1940.5,0.65558276]
[1771783384964,1.19679507,1941.2,1940.5,0.65558276]
[1771783385164,6.30104088,1941.1,1940.5,0.65558276]
[1771783385366,1.19679507,1941.2,1940.5,0.65558276]
[1771783385565,6.30078588,1941.1,1940.5,0.65558276]
[1771783385766,1.19679507,1941.2,1940.5,0.65558276]
[1771783386065,6.30078588,1941.1,1940.5,0.65558276]
[1771783386266,1.19679507,1941.2,1940.5,0.65558276]
[1771783386467,6.30068842,1941.1,1940.5,0.65558276]
[1771783386667,1.19679507,1941.2,1940.5,0.65558276]
[1771783386869,6.30077378,1941.1,1940.5,0.65558276]
[1771783387064,1.19679507,1941.2,1940.5,0.65558276]
[1771783387264,6.30081367,1941.1,1940.5,0.65558276]
[1771783387464,1.19679507,1941.2,1940.5,0.65558276]
[1771783387667,6.30069526,1941.1,1940.5,0.65558276]
[1771783387867,1.19679507,1941.2,1940.5,0.65558276]
[1771783388066,6.3006978,1941.1,1940.5,0.65558276]
[1771783388265,1.19679507,1941.2,1940.5,0.65558276]
[1771783388468,6.30114701,1941.1,1940.5,0.65558276]
[1771783388669,1.19679507,1941.2,1940.5,0.65558276]
[1771783388869,6.30114633,1941.1,1940.5,0.65558276]
[1771783389070,1.19679507,1941.2,1940.5,0.65558276]
[1771783389270,6.3018315,1941.1,1940.5,0.65558276]
[1771783389469,1.19679507,1941.2,1940.5,0.65558276]
[1771783389670,6.30179358,1941.1,1940.5,0.65558276]
[1771783389972,0.00625603,1941.2,1940.6,0.65163782]
[1771783390266,6.30179616,1941.1,1940.6,0.65163782]
[1771783390470,0.00625603,1941.2,1940.6,0.65163782]
[1771783390677,6.30362096,1941.1,1940.6,0.65163782]
[1771783390863,0.00625603,1941.2,1940.6,0.65163782]
[1771783391069,6.30362027,1941.1,1940.6,0.65163782]
[1771783391372,0.00625603,1941.2,1940.6,0.65163782]
[1771783391573,6.30355835,1941.1,1940.6,0.65163782]
[1771783391769,0.00625603,1941.2,1940.6,0.65163782]
[1771783391969,6.30355967,1941.1,1940.6,0.65163782]
[1771783392173,0.00625603,1941.2,1940.6,0.65163782]
[1771783392375,6.30350127,1941.1,1940.6,0.65163782]
[1771783392679,0.00625603,1941.2,1940.6,0.65163782]
[1771783392883,6.30402815,1941.1,1940.6,0.65163782]
[1771783393175,0.00625603,1941.2,1940.6,0.65163782]
[1771783393375,6.30416259,1941.1,1940.6,0.65163782]
[1771783393576,0.00625603,1941.2,1940.6,0.65163782]
[1771783393876,6.30413512,1941.1,1940.6,0.65163782]
[1771783394073,0.00625603,1941.2,1940.6,0.65163782]
[1771783394370,6.30432951,1941.1,1940.6,0.65163782]
[1771783394570,0.00625603,1941.2,1940.6,0.65163782]
[1771783394777,6.30432715,1941.1,1940.6,0.65163782]
[1771783394978,0.00625603,1941.2,1940.6,0.65163782]
[1771783395181,6.30432758,1941.1,1940.6,0.65163782]
[1771783395381,0.00625603,1941.2,1940.6,0.65163782]
[1771783395571,6.30460128,1941.1,1940.6,0.65163782]
[1771783395775,0.00625603,1941.2,1940.6,0.65163782]
[1771783395975,6.30459828,1941.1,1940.6,0.65163782]
[1771783396176,0.00625603,1941.2,1940.6,0.65163782]
[1771783396482,6.30492251,1941.1,1940.6,0.65163782]
[1771783396682,0.00625603,1941.2,1940.6,0.65163782]
[1771783396979,6.30495591,1941.1,1940.6,0.65163782]
[1771783397279,0.00625603,1941.2,1940.6,0.65163782]
[1771783397579,6.30540719,1941.1,1940.6,0.65163782]
[1771783397783,0.00625603,1941.2,1940.6,0.65163782]
[1771783397972,6.30540786,1941.1,1940.6,0.65163782]
[1771783398172,6.30592069,1941.0,1940.6,0.65163782]
[1771783398371,0.00625603,1941.2,1940.6,0.65163782]
[1771783398573,6.30595831,1941.1,1940.6,0.65163782]
[1771783398786,7.49649735,1941.0,1940.5,0.64662338]
[1771783399081,1.19053904,1940.6,1940.0,0.64662338]
[1771783399283,1.19053904,1940.8,1940.0,0.64662338]
[1771783399484,6.30482008,1940.7,1940.0,0.64662338]
[1771783399677,1.19053904,1940.8,1940.0,0.64662338]
[1771783399882,6.30497102,1940.7,1940.0,0.64662338]
[1771783400183,1.19053904,1940.8,1940.0,0.64662338]
[1771783400385,6.30561002,1940.7,1940.0,0.64662338]
[1771783400584,1.19053904,1940.8,1940.0,0.64662338]
[1771783400885,6.30427762,1940.7,1940.0,0.64662338]
[1771783401086,1.19053904,1940.8,1940.0,0.64662338]
[1771783401286,6.30478771,1940.7,1940.0,0.64662338]
[1771783401485,1.19053904,1940.8,1940.0,0.64662338]
[1771783401786,6.3036254,1940.7,1940.0,0.64662338]
[1771783402086,1.19053904,1940.8,1940.0,0.64662338]
[1771783407389,6.32633143,1940.7,1940.0,0.64662338]
[1771783407689,1.19053904,1940.8,1940.0,0.64662338]
[1771783407889,6.32637208,1940.7,1940.0,0.64662338]
[1771783408090,1.19053904,1940.8,1940.0,0.64662338]